bitfinex/quotes_SOLUSD_20250611
["timestamp","ask_amount","ask_price","bid_price","bid_amount"]
[1749679798992,35.71678978,160.34,160.31,0.28432314]
[1749679798993,29.48,160.34,160.33,13.69173868]
[1749679799877,10.0,160.43,160.34,0.14216157]
[1749679799878,21.8163685,160.43,160.34,0.14216157]
[1749679800078,13.69173868,160.41,160.34,0.42648471]
[1749679800595,13.69173868,160.41,160.36,13.69173868]
[1749679801004,6.23441396,160.4,160.36,13.69173868]
[1749679801178,29.46,160.39,160.36,13.69173868]
[1749679803109,49.3866705,160.39,160.32,27.6181]
[1749679803283,13.69173868,160.37,160.32,13.69173868]
[1749679803603,29.46,160.36,160.33,13.69173868]
[1749679803904,29.46,160.36,160.34,13.69173868]
[1749679804701,29.46,160.36,160.33,13.69173868]
[1749679805103,35.69611881,160.36,160.29,18.64964886]
[1749679805396,35.69611881,160.36,160.3,13.69173868]
[1749679805602,35.69611881,160.36,160.34,13.69173868]
[1749679805976,35.69611881,160.36,160.3,0.28432314]
[1749679806183,29.46,160.36,160.35,13.69173868]
[1749679806584,29.46,160.36,160.34,13.69173868]
[1749679806585,35.69596906,160.36,160.34,13.69173868]
[1749679806994,29.46,160.36,160.31,18.933972]
[1749679807211,35.69602644,160.36,160.34,13.69173868]
[1749679807707,29.46,160.36,160.34,13.69173868]
[1749679809004,29.46,160.36,160.35,13.69173868]
[1749679809313,35.69619298,160.36,160.33,13.69173868]
[1749679810386,35.69619298,160.36,160.34,13.69173868]
[1749679810705,29.46,160.36,160.35,32.34138754]
[1749679811584,29.42,160.36,160.35,32.34138754]
[1749679811897,29.42,160.36,160.35,18.64964886]
[1749679812093,29.42,160.36,160.33,13.69173868]
[1749679813005,6.23635796,160.35,160.31,0.28432314]
[1749679813178,6.23635796,160.35,160.31,0.14216157]
[1749679813379,6.23635796,160.35,160.33,13.69173868]
[1749679813797,6.23635796,160.35,160.31,18.79181043]
[1749679814016,19.92809664,160.35,160.3,13.69173868]
[1749679814200,6.23635796,160.35,160.3,13.69173868]
[1749679814506,21.82725287,160.35,160.29,18.64964886]
[1749679814697,35.51899155,160.35,160.3,13.69173868]
[1749679814880,21.82725287,160.35,160.31,13.69173868]
[1749679815075,35.51899155,160.35,160.3,13.69173868]
[1749679815687,35.51899155,160.35,160.29,18.64964886]
[1749679815889,13.69173868,160.34,160.29,13.69173868]
[1749679816093,29.42,160.33,160.3,13.69173868]
[1749679816280,29.42,160.33,160.31,13.69173868]
[1749679816806,29.42,160.33,160.3,13.69173868]
[1749679817187,35.65745553,160.33,160.3,13.69173868]
[1749679818909,35.65745553,160.33,160.31,13.69173868]
[1749679819522,21.82725287,160.35,160.31,13.69173868]
[1749679819813,29.42,160.34,160.31,13.69173868]
[1749679820795,29.42,160.34,160.32,13.69173868]
[1749679821311,43.11173868,160.34,160.28,18.64964886]
[1749679821506,6.2371359,160.33,160.28,18.64964886]
[1749679821709,6.2371359,160.33,160.29,13.69173868]
[1749679822215,21.82997566,160.33,160.28,13.69173868]
[1749679822525,21.82997566,160.33,160.27,18.79181043]
[1749679822696,21.82997566,160.33,160.29,13.69173868]
[1749679822892,6.2371359,160.33,160.27,18.79181043]
[1749679823199,6.2371359,160.33,160.3,13.69173868]
[1749679823407,6.2371359,160.33,160.28,18.79181043]
[1749679823598,6.2371359,160.33,160.29,13.69173868]
[1749679825119,6.2371359,160.33,160.3,13.69173868]
[1749679827399,6.2371359,160.33,160.31,13.69173868]
[1749679827726,6.4269,160.35,160.32,13.69173868]
[1749679827727,6.23635796,160.35,160.32,13.69173868]
[1749679828026,6.23635796,160.35,160.34,13.69173868]
[1749679828232,14.19610389,160.36,160.34,13.69173868]
[1749679828437,29.38,160.35,160.34,13.69173868]
[1749679828906,14.19610389,160.36,160.33,13.69173868]
[1749679829106,35.6166139,160.35,160.34,13.69173868]
[1749679829528,35.6166139,160.35,160.33,13.69173868]
[1749679830531,29.38,160.35,160.34,13.69173868]
[1749679831623,6.23519142,160.38,160.34,39.69173868]
[1749679831840,6.23519142,160.38,160.36,13.69173868]
[1749679832006,6.23519142,160.38,160.17,11.5977745]
[1749679832007,17.7408,160.35,160.17,11.5977745]
[1749679832203,17.7408,160.35,160.15,1.6033]
[1749679832204,26.0,160.27,160.15,1.6033]
[1749679832408,13.69173868,160.2,160.15,13.69173868]
[1749679832614,29.36,160.19,160.16,13.69173868]
[1749679832818,29.36,160.19,160.17,13.69173868]
[1749679833214,29.36,160.19,160.11,1.5036]
[1749679833215,29.36,160.19,160.18,13.69173868]
[1749679833609,6.24141805,160.22,160.18,13.69173868]
[1749679833813,29.36,160.21,160.18,13.69173868]
[1749679834013,29.36,160.21,160.14,18.64964886]
[1749679834236,29.36,160.21,160.18,13.69173868]
[1749679834436,29.36,160.2,160.18,13.69173868]
[1749679835130,35.60239645,160.2,160.15,0.42648471]
[1749679835312,35.60239645,160.2,160.18,13.69173868]
[1749679835923,15.60141786,160.25,160.15,0.28432314]
[1749679835924,41.60141786,160.25,160.19,32.34138754]
[1749679836117,7.9,160.26,160.22,13.69173868]
[1749679836336,35.60037234,160.25,160.23,13.69173868]
[1749679836542,35.60037234,160.25,160.22,13.69173868]
[1749679836842,49.29211102,160.25,160.2,13.69173868]
[1749679837143,49.29211102,160.25,160.19,0.28432314]
[1749679837144,13.69173868,160.24,160.19,0.28432314]
[1749679837439,13.69173868,160.24,160.19,13.97606182]
[1749679839342,51.20099636,160.25,160.21,13.69173868]
[1749679839847,64.89273504,160.25,160.2,13.69173868]
[1749679840021,51.20099636,160.25,160.2,13.69173868]
[1749679840222,13.69173868,160.24,160.19,13.69173868]
[1749679840641,6.24037234,160.25,160.21,13.69173868]
[1749679840835,29.36,160.23,160.21,13.69173868]
[1749679841847,6.24031111,160.25,160.22,13.69173868]
[1749679842025,29.36,160.24,160.22,13.69173868]
[1749679842227,29.36,160.24,160.21,13.97606182]
[1749679842543,29.36,160.24,160.21,0.28432314]
[1749679843138,35.60067634,160.24,160.21,0.28432314]
[1749679843440,35.600654,160.24,160.21,0.28432314]
[1749679845920,35.600654,160.24,160.17,18.64964886]
[1749679846223,13.69173868,160.23,160.19,18.64964886]
[1749679848136,6.2412144,160.23,160.19,13.69173868]
[1749679849322,6.2412144,160.23,160.2,0.28432314]
[1749679850340,35.60079345,160.24,160.21,13.69173868]
[1749679850554,35.60079345,160.24,160.22,18.64964886]
[1749679851034,49.29253213,160.24,160.21,18.64964886]
[1749679851535,35.60079345,160.24,160.21,18.64964886]
[1749679852246,23.49984791,160.26,160.22,0.28432314]
[1749679852247,14.14011432,160.26,160.22,0.28432314]
[1749679852439,14.14011432,160.26,160.24,13.69173868]
[1749679852622,29.32,160.25,160.24,13.69173868]
[1749679852823,29.32,160.25,160.24,13.97606182]
[1749679857155,29.32,160.25,160.24,0.28432314]
[1749679857349,35.56025574,160.25,160.23,18.933972]
[1749679857550,29.32,160.25,160.23,32.62571068]
[1749679858789,29.32,160.25,160.24,18.64964886]
[1749679858790,35.5602496,160.25,160.24,18.64964886]
[1749679862079,29.32,160.25,160.24,18.64964886]
[1749679862652,7.9,160.26,160.25,18.64964886]
[1749679862970,7.9,160.26,160.24,13.69173868]
[1749679863151,37.18,160.26,160.24,13.69173868]
[1749679863352,37.18,160.26,160.25,18.933972]
[1749679863561,37.18,160.26,160.25,32.62571068]
[1749679863963,26.0,160.32,160.25,32.62571068]
[1749679863964,6.23674691,160.34,160.26,0.14216157]
[1749679864148,29.28,160.33,160.31,18.64964886]
[1749679864971,26.0,160.34,160.31,13.69173868]
[1749679865268,29.28,160.32,160.31,0.28432314]
[1749679865469,29.28,160.32,160.31,13.97606182]
[1749679865675,6.1429,160.43,160.32,0.28432314]
[1749679865866,6.1429,160.43,160.27,7.9409]
[1749679865867,13.69173868,160.4,160.27,7.9409]
[1749679866047,13.69173868,160.4,160.3,0.14216157]
[1749679866254,13.69173868,160.35,160.32,18.64964886]
[1749679866563,29.28,160.34,160.32,18.64964886]
[1749679867868,29.28,160.34,160.32,13.69173868]
[1749679869970,29.28,160.34,160.33,32.62571068]
[1749679870179,6.1429,160.43,160.34,44.933972]
[1749679870378,28.05933868,160.47,160.42,13.69173868]
[1749679870669,35.47208276,160.46,160.43,13.69173868]
[1749679871071,35.47208276,160.46,160.39,18.64964886]
[1749679871072,6.23208276,160.46,160.44,13.69173868]
[1749679871284,29.24,160.45,160.41,18.933972]
[1749679871479,29.24,160.45,160.42,13.69173868]
[1749679872165,35.47278824,160.45,160.43,13.69173868]
[1749679872781,6.23278824,160.45,160.43,13.69173868]
[1749679872985,29.24,160.44,160.43,13.69173868]
[1749679873858,29.24,160.44,160.38,18.64964886]
[1749679874057,6.23324814,160.43,160.41,13.69173868]
[1749679874257,29.24,160.44,160.43,18.64964886]
[1749679874463,29.24,160.44,160.43,32.34138754]
[1749679874667,29.22,160.44,160.43,32.34138754]
[1749679875886,14.07177649,160.47,160.44,0.28432314]
[1749679876063,14.07177649,160.47,160.46,13.69173868]
[1749679876259,43.29177649,160.47,160.46,13.69173868]
[1749679876579,43.29177649,160.47,160.44,13.69173868]
[1749679876754,7.84,160.47,160.46,13.69173868]
[1749679876959,37.06,160.47,160.46,13.69173868]
[1749679877368,7.84,160.47,160.46,32.34138754]
[1749679877771,37.04,160.47,160.46,32.34138754]
[1749679878261,37.04,160.47,160.46,32.62571068]
[1749679878983,7.84,160.47,160.46,32.62571068]
[1749679879286,37.04,160.47,160.46,32.62571068]
[1749679880864,37.04,160.47,160.46,18.933972]
[1749679881067,37.04,160.47,160.46,32.62571068]
[1749679881688,37.02,160.47,160.46,32.62571068]
[1749679882791,37.02,160.47,160.46,32.76787225]
[1749679883867,6.22936522,160.53,160.48,0.28432314]
[1749679884199,6.22936522,160.53,160.49,18.64964886]
[1749679884382,6.22936522,160.53,160.52,13.69173868]
[1749679884589,35.40936522,160.53,160.52,13.69173868]
[1749679884776,6.22936522,160.53,160.52,13.69173868]
[1749679884976,35.40936522,160.53,160.52,13.69173868]
[1749679885177,6.22936522,160.53,160.52,13.69173868]
[1749679885399,35.40936522,160.53,160.52,13.69173868]
[1749679885596,35.38936522,160.53,160.52,13.69173868]
[1749679885798,6.22905186,160.54,160.52,13.69173868]
[1749679885980,6.22905186,160.54,160.53,13.69173868]
[1749679886169,6.22869606,160.55,160.53,13.69173868]
[1749679886367,6.22869606,160.55,160.54,13.69173868]
[1749679886670,35.38869606,160.55,160.54,13.69173868]
[1749679887079,14.04834642,160.56,160.54,13.69173868]
[1749679887262,14.04834642,160.56,160.55,13.69173868]
[1749679887468,43.20834642,160.56,160.55,13.69173868]
[1749679888600,14.04834642,160.56,160.55,13.69173868]
[1749679888893,43.18834642,160.56,160.55,13.69173868]
[1749679889198,7.82,160.56,160.55,32.62571068]
[1749679889400,36.96,160.56,160.55,32.62571068]
[1749679889700,13.69173868,160.62,160.56,28.64964886]
[1749679889869,13.69173868,160.62,160.57,13.69173868]
[1749679890783,13.69173868,160.62,160.58,13.69173868]
[1749679890968,21.79089353,160.62,160.58,13.69173868]
[1749679891368,6.22587473,160.62,160.59,13.69173868]
[1749679891570,6.22587473,160.62,160.61,13.69173868]
[1749679893408,6.22587473,160.62,160.6,13.69173868]
[1749679893596,6.22587473,160.62,160.59,13.69173868]
[1749679893797,6.22587473,160.62,160.59,23.69173868]
[1749679894007,6.22587473,160.62,160.59,13.69173868]
[1749679894510,13.69173868,160.6,160.54,10.0]
[1749679894713,30.6386,160.61,160.54,10.0]
[1749679894894,30.6386,160.61,160.54,13.69173868]
[1749679894895,13.69173868,160.58,160.54,13.69173868]
[1749679895095,6.22781341,160.57,160.54,13.69173868]
[1749679895499,21.79734694,160.57,160.54,13.69173868]
[1749679895716,13.69173868,160.56,160.51,10.0]
[1749679895885,21.79734694,160.57,160.52,18.64964886]
[1749679895886,13.69173868,160.55,160.52,18.64964886]
[1749679896215,13.69173868,160.56,160.52,18.64964886]
[1749679896391,13.69173868,160.56,160.53,10.0]
[1749679896593,35.48908562,160.57,160.53,10.0]
[1749679897002,35.48908562,160.57,160.53,23.69173868]
[1749679898091,13.69173868,160.55,160.51,10.0]
[1749679898306,13.69173868,160.52,160.48,32.34138754]
[1749679898519,29.1,160.55,160.48,42.34138754]
[1749679898693,13.69173868,160.53,160.48,42.34138754]
[1749679898897,13.69173868,160.53,160.49,10.0]
[1749679899201,6.2297533,160.52,160.48,42.34138754]
[1749679899798,21.80413655,160.52,160.48,32.34138754]
[1749679900096,21.80413655,160.52,160.47,10.0]
[1749679900308,13.69173868,160.48,160.43,23.69173868]
[1749679900506,13.69173868,160.48,160.38,7.42462729]
[1749679900507,13.69173868,160.46,160.41,13.69173868]
[1749679900706,13.69173868,160.44,160.39,10.0]
[1749679900913,13.69173868,160.43,160.39,13.69173868]
[1749679901097,13.69173868,160.43,160.33,6.2424]
[1749679901098,6.23402531,160.41,160.37,13.69173868]
[1749679901298,6.23402531,160.41,160.38,10.0]
[1749679901714,6.23402531,160.41,160.38,23.69173868]
[1749679902216,6.23402531,160.41,160.38,10.0]
[1749679902426,19.92576399,160.41,160.37,13.69173868]
[1749679902796,19.92576399,160.41,160.37,23.69173868]
[1749679902999,6.23402531,160.41,160.37,10.0]
[1749679903199,6.23402531,160.41,160.38,32.79801512]
[1749679903413,6.23402531,160.41,160.38,22.79801512]
[1749679903615,22.79801512,160.4,160.35,41.44766398]
[1749679904326,22.79801512,160.4,160.35,51.44766398]
[1749679904794,22.79801512,160.4,160.36,10.0]
[1749679905204,6.23480266,160.39,160.37,10.0]
[1749679905830,6.23444461,160.4,160.37,10.0]
[1749679906126,6.23444461,160.4,160.37,32.79801512]
[1749679907304,22.79801512,160.41,160.37,32.79801512]
[1749679907529,22.79801512,160.41,160.37,10.0]
[1749679907702,22.79801512,160.4,160.37,10.0]
[1749679908394,22.79801512,160.41,160.37,32.79801512]
[1749679909525,55.1,160.43,160.39,22.79801512]
[1749679909699,6.23373574,160.42,160.4,22.79801512]
[1749679910101,0.14216157,160.48,160.35,18.933972]
[1749679910102,22.79801512,160.46,160.39,10.28432314]
[1749679910303,6.23247117,160.45,160.41,22.79801512]
[1749679910500,6.23247117,160.45,160.4,10.0]
[1749679910501,6.1764,160.48,160.44,32.79801512]
[1749679910807,6.1764,160.48,160.4,18.64964886]
[1749679910808,6.23014142,160.51,160.48,10.0]
[1749679911019,22.79801512,160.5,160.45,10.0]
[1749679911220,22.79801512,160.49,160.45,32.79801512]
[1749679911418,6.23130608,160.48,160.46,32.79801512]
[1749679911614,6.2309912,160.49,160.47,22.79801512]
[1749679911803,36.84,160.52,160.48,32.79801512]
[1749679911804,7.76,160.52,160.48,32.79801512]
[1749679912003,7.76,160.52,160.5,32.79801512]
[1749679912410,13.98978018,160.52,160.5,10.0]
[1749679912813,13.98978018,160.52,160.5,32.79801512]
[1749679916010,13.98978018,160.52,160.5,10.0]
[1749679916206,13.98978018,160.52,160.5,32.79801512]
[1749679916411,13.98978018,160.52,160.44,26.28432314]
[1749679916412,7.76,160.52,160.51,51.44766398]
[1749679916631,6.22820129,160.56,160.52,10.0]
[1749679916937,44.59671964,160.56,160.52,10.0]
[1749679917136,44.59671964,160.56,160.51,10.0]
[1749679917137,22.79801512,160.55,160.51,10.0]
[1749679917514,21.79870452,160.56,160.52,32.79801512]
[1749679918036,6.22820129,160.56,160.52,32.79801512]
[1749679918404,26.0,160.57,160.54,22.79801512]
[1749679918636,26.0,160.57,160.54,32.79801512]
[1749679918807,32.22793558,160.57,160.54,32.79801512]
[1749679919006,149.1,160.62,160.55,10.0]
[1749679919211,6.22665006,160.6,160.56,22.79801512]
[1749679919408,26.0,160.58,160.56,22.79801512]
[1749679919932,6.22665006,160.6,160.57,22.79801512]
[1749679920424,6.22665006,160.6,160.58,22.79801512]
[1749679920828,32.22665006,160.6,160.57,10.0]
[1749679921131,22.79801512,160.59,160.55,10.0]
[1749679921428,22.79801512,160.58,160.55,10.0]
[1749679921630,22.79801512,160.59,160.55,10.0]
[1749679921819,99.63129033,160.6,160.55,32.79801512]
[1749679922321,76.83327521,160.6,160.56,22.79801512]
[1749679922519,99.63129033,160.6,160.55,32.79801512]
[1749679922839,22.79801512,160.59,160.54,32.79801512]
[1749679923130,22.79801512,160.59,160.54,22.79801512]
[1749679923328,73.63129033,160.6,160.55,32.79801512]
[1749679923635,50.83327521,160.6,160.56,22.79801512]
[1749679923930,21.79327521,160.6,160.57,22.79801512]
[1749679924533,6.22665006,160.6,160.57,22.79801512]
[1749679924715,6.22665006,160.6,160.58,32.79801512]
[1749679924923,6.22665006,160.6,160.58,10.0]
[1749679926010,29.02466518,160.6,160.56,10.0]
[1749679926215,21.79327521,160.6,160.57,10.0]
[1749679926532,21.79327521,160.6,160.57,32.79801512]
[1749679926924,22.79801512,160.58,160.53,10.0]
[1749679927233,22.79801512,160.59,160.55,10.0]
[1749679927415,50.79327521,160.6,160.56,22.79801512]
[1749679927607,6.22665006,160.6,160.59,22.79801512]
[1749679927808,6.22665006,160.6,160.59,32.79801512]
[1749679929736,6.22665006,160.6,160.59,10.0]
[1749679929939,6.22665006,160.6,160.57,10.0]
[1749679930322,6.22665006,160.6,160.57,32.79801512]
[1749679930837,6.22665006,160.6,160.01,27.06147383]
[1749679930838,6.2602,160.57,160.51,10.0]
[1749679931043,51.77801512,160.56,160.52,10.0]
[1749679932042,22.79801512,160.54,160.51,10.0]
[1749679932218,22.79801512,160.54,160.52,10.0]
[1749679933117,21.80006228,160.55,160.52,10.0]
[1749679933317,44.5980774,160.55,160.52,10.0]
[1749679934642,6.22858922,160.55,160.53,32.79801512]
[1749679934821,6.22858922,160.55,160.54,32.79801512]
[1749679935143,6.22781341,160.57,160.56,10.0]
[1749679935442,44.59045438,160.61,160.56,32.79801512]
[1749679935752,6.22626237,160.61,160.6,10.0]
[1749679935951,6.22626237,160.61,160.59,10.0]
[1749679936957,6.22626237,160.61,160.6,10.0]
[1749679937158,6.22626237,160.61,160.58,10.0]
[1749679937448,22.79801512,160.6,160.57,10.0]
[1749679937739,22.79801512,160.58,160.54,10.0]
[1749679937942,22.79801512,160.57,160.54,10.0]
[1749679938147,52.92323017,160.61,160.53,10.0]
[1749679938148,22.79801512,160.56,160.53,10.0]
[1749679938338,22.79801512,160.55,160.51,10.0]
[1749679938540,22.79801512,160.54,160.52,10.0]
[1749679938724,22.79801512,160.55,160.52,10.0]
[1749679939236,6.2289772,160.54,160.52,10.0]
[1749679939428,29.02699232,160.54,160.49,32.79801512]
[1749679939642,44.59943532,160.54,160.51,10.0]
[1749679939839,6.2289772,160.54,160.53,32.79801512]
[1749679940432,15.56979997,160.57,160.53,32.79801512]
[1749679940647,38.36548251,160.6,160.56,10.0]
[1749679940950,6.22703779,160.59,160.56,10.0]
[1749679941251,44.5926474,160.59,160.55,10.0]
[1749679941452,22.79801512,160.58,160.54,10.0]
[1749679941631,22.79801512,160.56,160.53,10.0]
[1749679942034,22.79801512,160.56,160.52,10.0]
[1749679943342,22.79801512,160.56,160.52,32.79801512]
[1749679944330,6.22858922,160.55,160.54,10.0]
[1749679944645,22.79801512,160.56,160.54,10.0]
[1749679944646,6.22742558,160.58,160.54,32.79801512]
[1749679944843,6.22742558,160.58,160.56,10.0]
[1749679945039,6.22742558,160.58,160.56,32.79801512]
[1749679946348,21.79407804,160.6,160.56,32.79801512]
[1749679946645,44.59209316,160.6,160.56,10.0]
[1749679947234,22.79801512,160.59,160.56,10.0]
[1749679947456,27.28554277,160.58,160.54,10.0]
[1749679947639,4.48734978,160.57,160.54,10.0]
[1749679947836,22.79801512,160.56,160.53,10.0]
[1749679948057,22.79801512,160.54,160.49,10.0]
[1749679948241,6.23052959,160.5,160.48,10.0]
[1749679948552,6.23052959,160.5,160.49,10.0]
[1749679948762,6.23052959,160.5,160.48,10.0]
[1749679948930,6.23052959,160.5,160.49,10.0]
[1749679949330,6.23052959,160.5,160.48,10.0]
[1749679949554,6.23052959,160.5,160.44,52.28062911]
[1749679949555,6.23052959,160.5,160.49,32.79801512]
[1749679950559,44.6000681,160.54,160.5,10.0]
[1749679951062,22.79801512,160.53,160.5,10.0]
[1749679951759,22.79801512,160.53,160.49,10.0]
[1749679951947,22.79801512,160.52,160.48,32.79801512]
[1749679952263,22.79801512,160.52,160.47,10.0]
[1749679952558,21.80549498,160.51,160.48,10.0]
[1749679953543,21.80549498,160.51,160.48,32.79801512]
[1749679953846,21.80549498,160.51,160.48,10.0]
[1749679954047,21.80549498,160.51,160.47,10.0]
[1749679954352,21.80549498,160.51,160.43,1.5998]
[1749679954353,21.81093038,160.47,160.45,10.0]
[1749679954665,21.81093038,160.47,160.46,10.0]
[1749679955548,21.81093038,160.47,160.46,32.79801512]
[1749679956556,84.10690922,160.51,160.46,32.79801512]
[1749679956752,84.10690922,160.51,160.47,22.79801512]
[1749679958144,84.10690922,160.51,160.48,10.0]
[1749679958349,84.10690922,160.51,160.49,10.0]
[1749679958749,84.10690922,160.51,160.48,10.0]
[1749679958949,22.79801512,160.5,160.46,10.0]
[1749679959345,22.79801512,160.49,160.46,10.0]
[1749679959848,84.10690922,160.51,160.47,10.0]
[1749679960046,84.10690922,160.51,160.47,32.79801512]
[1749679960445,22.79801512,160.49,160.45,10.0]
[1749679960647,22.79801512,160.46,160.41,22.79801512]
[1749679960967,22.79801512,160.44,160.39,22.79801512]
[1749679961163,22.79801512,160.43,160.39,22.79801512]
[1749679961952,22.79801512,160.43,160.38,32.79801512]
[1749679962448,51.67801512,160.44,160.4,10.0]
[1749679962648,22.79801512,160.44,160.4,10.0]
[1749679963171,21.8163685,160.43,160.41,22.79801512]
[1749679963369,21.8163685,160.43,160.4,10.0]
[1749679963570,21.8163685,160.43,160.42,22.79801512]
[1749679963753,21.8163685,160.43,160.42,32.79801512]
[1749679964074,31.16235587,160.45,160.43,18.64964886]
[1749679964075,6.23247117,160.45,160.43,18.64964886]
[1749679964280,6.23247117,160.45,160.44,32.79801512]
[1749679965174,15.57934208,160.47,160.44,32.79801512]
[1749679965474,15.57934208,160.47,160.45,10.0]
[1749679965671,15.57934208,160.47,160.46,32.79801512]
[1749679967248,21.80685357,160.5,160.44,10.0]
[1749679967448,44.60486869,160.5,160.45,32.79801512]
[1749679967674,48.79801512,160.46,160.4,10.0]
[1749679967880,22.79801512,160.44,160.41,10.0]
[1749679968088,22.79801512,160.45,160.41,10.0]
[1749679968382,26.0,160.46,160.38,22.79801512]
[1749679968383,22.79801512,160.43,160.38,22.79801512]
[1749679968586,22.79801512,160.45,160.41,10.0]
[1749679969891,21.81500872,160.44,160.41,10.0]
[1749679970575,21.81500872,160.44,160.4,22.79801512]
[1749679970909,21.81500872,160.44,160.41,10.0]
[1749679972226,38.38016421,160.44,160.41,10.0]
[1749679972811,15.58214909,160.44,160.41,10.0]
[1749679973613,15.58214909,160.44,160.42,10.0]
[1749679973811,6.23091781,160.49,160.46,10.0]
[1749679974015,6.23091781,160.49,160.47,22.79801512]
[1749679974215,21.80549498,160.51,160.48,22.79801512]
[1749679974533,6.23014142,160.51,160.5,32.79801512]
[1749679974734,15.57326146,160.54,160.5,32.79801512]
[1749679974735,6.22936522,160.53,160.5,32.79801512]
[1749679975032,6.22936522,160.53,160.52,32.79801512]
[1749679976431,6.22858922,160.55,160.52,32.79801512]
[1749679976830,6.22858922,160.55,160.53,10.0]
[1749679977032,6.22858922,160.55,160.53,32.79801512]
[1749679977523,6.22858922,160.55,160.53,10.0]
[1749679977715,6.22858922,160.55,160.53,32.79801512]
[1749679977920,22.79801512,160.54,160.52,10.0]
[1749679978117,21.80006228,160.55,160.53,10.0]
[1749679978313,6.22858922,160.55,160.53,10.0]
[1749679978529,6.22858922,160.55,160.53,32.79801512]
[1749679979221,6.22858922,160.55,160.54,10.0]
[1749679980539,6.22858922,160.55,160.53,32.79801512]
[1749679980925,6.22858922,160.55,160.54,10.0]
[1749679982953,6.1002,160.6,160.55,10.0]
[1749679983128,6.22665006,160.6,160.57,32.79801512]
[1749679983436,38.36464027,160.6,160.57,10.0]
[1749679983621,22.79801512,160.58,160.54,10.0]
[1749679983938,22.79801512,160.55,160.52,10.0]
[1749679984153,22.79801512,160.53,160.46,10.0]
[1749679984454,26.0,160.54,160.48,10.0]
[1749679984455,22.79801512,160.5,160.48,10.0]
[1749679984941,22.79801512,160.5,160.49,10.0]
[1749679985235,22.79801512,160.5,160.46,22.79801512]
[1749679985439,21.80821234,160.49,160.45,32.79801512]
[1749679985946,22.79801512,160.48,160.45,10.0]
[1749679986115,22.79801512,160.48,160.44,10.0]
[1749679986312,22.79801512,160.48,160.45,10.0]
[1749679986538,22.79801512,160.48,160.46,10.0]
[1749679986740,22.79801512,160.48,160.44,10.0]
[1749679987042,22.79801512,160.47,160.44,10.0]
[1749679987546,21.81228966,160.46,160.39,10.0]
[1749679987835,6.23208276,160.46,160.45,10.0]
[1749679988632,6.23208276,160.46,160.45,32.79801512]
[1749679989629,21.80861421,160.49,160.45,32.79801512]
[1749679990630,21.80861421,160.49,160.46,10.0]
[1749679991241,22.79801512,160.48,160.46,10.0]
[1749679991823,44.60662933,160.49,160.46,10.0]
[1749679992334,6.23091781,160.49,160.47,10.0]
[1749679996340,6.23091781,160.49,160.46,10.0]
[1749679996727,6.23091781,160.49,160.47,10.0]
[1749679998141,6.23014142,160.51,160.49,10.0]
[1749679998318,29.02815654,160.51,160.49,10.0]
[1749679998722,6.23014142,160.51,160.49,10.0]
[1749680000439,6.22990574,160.52,160.51,10.0]
[1749680001039,6.22936522,160.53,160.51,10.0]
[1749680002847,22.79801512,160.52,160.47,10.0]
[1749680003155,22.79801512,160.52,160.44,27.64446157]
[1749680003156,22.79801512,160.48,160.46,10.0]
[1749680003450,22.79801512,160.49,160.48,10.0]
[1749680003649,21.80549498,160.51,160.48,10.0]
[1749680003828,6.23014142,160.51,160.5,10.0]
[1749680004032,6.23014142,160.51,160.5,32.79801512]
[1749680004553,41.57329449,160.54,160.51,10.0]
[1749680004554,6.22936522,160.53,160.51,10.0]
[1749680007751,6.22936522,160.53,160.52,10.0]
[1749680009755,29.02699232,160.54,160.52,10.0]
[1749680010059,22.79801512,160.53,160.49,10.0]
[1749680010235,22.79801512,160.52,160.5,10.0]
[1749680010734,48.79801512,160.53,160.49,10.0]
[1749680010934,22.79801512,160.52,160.49,10.0]
[1749680011239,22.79801512,160.51,160.48,10.0]
[1749680011958,6.23052959,160.5,160.49,10.0]
[1749680012426,6.23052959,160.5,160.48,10.0]
[1749680012628,6.23052959,160.5,160.49,10.0]
[1749680013751,6.23029906,160.51,160.5,10.0]
[1749680014132,6.2289772,160.54,160.51,10.0]
[1749680014335,6.2289772,160.54,160.52,10.0]
[1749680015226,6.2289772,160.54,160.53,10.0]
[1749680015432,6.22869753,160.55,160.53,10.0]
[1749680016468,15.56937501,160.58,160.55,10.0]